[Event "Swedish Chess Championship 2019: Veteran-SM 65+"]
[Site "Stiga Sports Arena, Arenatorget 1, Eskilstuna, Sweden"]
[Date "2019.07.10"]
[Round "5.4"]
[White "Svensson, Hakan"]
[Black "Gromark, Jonas"]
[Result "1-0"]
[TimeControl "90 minutes for 40 moves + 30 minutes for the rest of the game + 30 seconds per move from move one"]
[WhiteFideId "1714201"]
[BlackFideId "137122733"]
[WhiteElo "2056"]
[BlackElo "1833"]

1. d4 {[%clk 01:30:11]} {[%emt 00:02:14]} Nf6 {[%clk 01:30:13]} {[%emt
00:02:44]} 2. Bg5 {[%clk 01:29:57]} {[%emt 00:01:04]} d5 {[%clk 01:28:15]} 3.
Bxf6 {[%clk 01:29:57]} {[%emt 00:00:02]} exf6 {[%clk 01:26:54]} {[%emt
00:01:49]} 4. e3 {[%clk 01:30:20]} Bd6 {[%clk 01:27:07]} 5. c4 {[%clk
01:30:40]} dxc4 {[%clk 01:22:15]} {[%emt 00:04:58]} 6. Bxc4 {[%clk 01:31:02]}
{[%emt 00:00:07]} O-O {[%clk 01:22:21]} {[%emt 00:00:25]} 7. Nc3 {[%clk
01:31:19]} {[%emt 00:00:12]} f5 {[%clk 01:20:01]} {[%emt 00:02:50]} 8. Qc2
{[%clk 01:31:14]} {[%emt 00:00:36]} c6 {[%clk 01:18:21]} {[%emt 00:02:11]} 9.
Nf3 {[%clk 01:31:19]} {[%emt 00:00:24]} Nd7 {[%clk 01:18:16]} {[%emt 00:00:35]}
10. Bd3 {[%clk 01:30:20]} {[%emt 00:01:28]} g6 {[%clk 01:18:16]} {[%emt
00:00:31]} 11. h4 {[%clk 01:28:47]} {[%emt 00:02:02]} Nf6 {[%clk 01:18:01]}
{[%emt 00:00:46]} 12. h5 {[%clk 01:26:52]} {[%emt 00:02:24]} Kg7 {[%clk
01:07:29]} {[%emt 00:11:02]} 13. O-O-O {[%clk 01:25:18]} {[%emt 00:02:04]} Be6
{[%clk 01:04:57]} {[%emt 00:03:02]} 14. Kb1 {[%clk 01:15:38]} {[%emt 00:10:10]}
Qe7 {[%clk 01:04:20]} {[%emt 00:01:07]} 15. hxg6 {[%clk 01:12:13]} {[%emt
00:03:55]} hxg6 {[%clk 01:03:29]} {[%emt 00:01:21]} 16. Rhe1 {[%clk 00:57:41]}
{[%emt 00:15:01]} Nd5 {[%clk 00:55:59]} {[%emt 00:08:00]} 17. Nxd5 {[%clk
00:56:13]} {[%emt 00:01:58]} cxd5 {[%clk 00:55:05]} {[%emt 00:01:25]} 18. g3
{[%clk 00:45:04]} {[%emt 00:11:38]} Rac8 {[%clk 00:52:50]} {[%emt 00:02:46]} 19.
Qb3 {[%clk 00:41:20]} {[%emt 00:04:14]} f6 {[%clk 00:43:32]} {[%emt 00:09:49]}
20. Nh4 {[%clk 00:38:17]} {[%emt 00:03:32]} a6 {[%clk 00:41:50]} {[%emt
00:02:13]} 21. g4 {[%clk 00:32:34]} {[%emt 00:06:12]} g5 {[%clk 00:31:01]}
{[%emt 00:11:20]} 22. Nxf5+ {[%clk 00:31:45]} {[%emt 00:01:18]} Bxf5 {[%clk
00:30:44]} {[%emt 00:00:48]} 23. Bxf5 {[%clk 00:31:46]} {[%emt 00:00:29]} Rc4
{[%clk 00:19:53]} {[%emt 00:11:22]} 24. Rh1 {[%clk 00:28:04]} {[%emt 00:04:09]}
Rh8 {[%clk 00:10:03]} {[%emt 00:10:22]} 25. Rxh8 {[%clk 00:28:20]} {[%emt
00:00:13]} Kxh8 {[%clk 00:10:32]} {[%emt 00:00:02]} 26. Rh1+ {[%clk 00:28:39]}
{[%emt 00:00:11]} Kg8 {[%clk 00:10:44]} {[%emt 00:00:18]} 27. Bh7+ {[%clk
00:27:10]} {[%emt 00:01:58]} Kf8 {[%clk 00:07:26]} {[%emt 00:03:49]} 28. Bd3
{[%clk 00:27:27]} {[%emt 00:00:13]} Ke8 {[%clk 00:06:30]} {[%emt 00:01:26]} 29.
Rh8+ {[%clk 00:27:35]} {[%emt 00:00:21]} 1-0

[Event "Swedish Chess Championship 2019: Veteran-SM 65+"]
[Site "Stiga Sports Arena, Arenatorget 1, Eskilstuna, Sweden"]
[Date "2019.07.11"]
[Round "6.1"]
[White "Andersson, Kjell-Ake"]
[Black "Amnell, Mats"]
[Result "1-0"]
[TimeControl "90 minutes for 40 moves + 30 minutes for the rest of the game + 30 seconds per move from move one"]
[WhiteFideId "1713825"]
[BlackFideId "1717316"]
[WhiteElo "1859"]
[BlackElo "1770"]

1. c4 {[%clk 01:30:26]} Nf6 {[%clk 01:30:11]} {[%emt 00:14:50]} 2. Nc3 {[%clk
01:30:45]} g6 {[%clk 01:30:16]} {[%emt 00:02:12]} 3. g3 {[%clk 01:30:03]} Bg7
{[%clk 01:30:26]} {[%emt 00:02:49]} 4. Bg2 {[%clk 01:30:23]} O-O {[%clk
01:30:08]} 5. e4 {[%clk 01:30:03]} d6 {[%clk 01:29:55]} 6. Nge2 {[%clk
01:29:53]} c5 {[%clk 01:29:11]} 7. O-O {[%clk 01:26:26]} Nc6 {[%clk 01:28:44]}
{[%emt 00:03:18]} 8. d3 {[%clk 01:25:55]} {[%emt 00:00:59]} Bd7 {[%clk
01:25:27]} {[%emt 00:03:48]} 9. h3 {[%clk 01:22:25]} {[%emt 00:03:58]} Ne8
{[%clk 01:23:11]} {[%emt 00:02:49]} 10. Be3 {[%clk 01:20:28]} {[%emt 00:02:26]}
Nc7 {[%clk 01:17:51]} {[%emt 00:05:51]} 11. d4 {[%clk 01:08:26]} {[%emt
00:12:32]} cxd4 {[%clk 01:16:43]} {[%emt 00:01:39]} 12. Nxd4 {[%clk 01:08:47]}
{[%emt 00:00:08]} Ne6 {[%clk 01:09:48]} {[%emt 00:07:25]} 13. Nde2 {[%clk
01:06:43]} {[%emt 00:02:32]} Ne5 {[%clk 00:58:13]} {[%emt 00:12:07]} 14. b3
{[%clk 01:05:43]} {[%emt 00:01:29]} Qa5 {[%clk 00:55:37]} {[%emt 00:03:06]} 15.
Qd2 {[%clk 01:01:15]} {[%emt 00:04:56]} Nc5 {[%clk 00:52:04]} {[%emt 00:04:06]}
16. Rab1 {[%clk 00:57:29]} {[%emt 00:04:13]} Qb4 {[%clk 00:40:18]} {[%emt
00:12:19]} 17. f4 {[%clk 00:51:45]} {[%emt 00:06:12]} Nc6 {[%clk 00:33:36]}
{[%emt 00:07:14]} 18. Rfd1 {[%clk 00:43:25]} {[%emt 00:08:48]} f5 {[%clk
00:23:30]} {[%emt 00:10:37]} 19. a3 {[%clk 00:33:59]} {[%emt 00:09:57]} Qxa3
{[%clk 00:19:41]} {[%emt 00:04:19]} 20. Nb5 {[%clk 00:33:15]} {[%emt 00:01:13]}
Qb4 {[%clk 00:19:06]} {[%emt 00:01:06]} 21. Qxb4 {[%clk 00:32:41]} {[%emt
00:01:05]} Nxb4 {[%clk 00:19:27]} {[%emt 00:00:09]} 22. Bxc5 {[%clk 00:32:57]}
{[%emt 00:00:14]} Nc2 {[%clk 00:14:48]} {[%emt 00:05:08]} 23. Nbc3 {[%clk
00:28:00]} {[%emt 00:05:26]} Bc6 {[%clk 00:13:20]} {[%emt 00:01:59]} 24. Bf2
{[%clk 00:27:56]} {[%emt 00:00:33]} fxe4 {[%clk 00:12:16]} {[%emt 00:01:35]} 25.
Bxe4 {[%clk 00:26:55]} {[%emt 00:01:32]} Bxe4 {[%clk 00:12:12]} {[%emt
00:00:34]} 26. Nxe4 {[%clk 00:27:15]} {[%emt 00:00:09]} Na3 {[%clk 00:11:58]}
{[%emt 00:00:45]} 27. Ra1 {[%clk 00:23:13]} {[%emt 00:04:31]} Bxa1 {[%clk
00:10:26]} {[%emt 00:02:02]} 28. Rxa1 {[%clk 00:23:35]} {[%emt 00:00:08]} Nc2
{[%clk 00:09:32]} {[%emt 00:01:24]} 29. Ra2 {[%clk 00:18:20]} {[%emt 00:05:44]}
Nb4 {[%clk 00:09:53]} {[%emt 00:00:11]} 30. Ra4 {[%clk 00:18:13]} {[%emt
00:00:37]} a5 {[%clk 00:06:37]} {[%emt 00:03:46]} 31. Bb6 {[%clk 00:16:23]}
{[%emt 00:02:16]} Ra6 {[%clk 00:04:09]} {[%emt 00:03:02]} 32. Bf2 {[%clk
00:15:14]} {[%emt 00:01:37]} Nd3 {[%clk 00:02:47]} {[%emt 00:01:53]} 33. Bd4
{[%clk 00:13:31]} {[%emt 00:02:11]} e5 {[%clk 00:01:52]} {[%emt 00:01:28]} 34.
Bc3 {[%clk 00:12:34]} {[%emt 00:01:27]} exf4 {[%clk 00:01:55]} {[%emt
00:00:27]} 35. gxf4 {[%clk 00:12:50]} {[%emt 00:00:14]} Nxf4 {[%clk 00:01:32]}
{[%emt 00:00:53]} 36. Nxf4 {[%clk 00:10:42]} {[%emt 00:02:37]} Rxf4 {[%clk
00:01:53]} {[%emt 00:00:09]} 37. c5 {[%clk 00:10:54]} {[%emt 00:00:19]} Kf8
{[%clk 00:00:51]} {[%emt 00:01:32]} 38. cxd6 {[%clk 00:10:37]} {[%emt
00:00:47]} Rc6 {[%clk 00:00:55]} {[%emt 00:00:26]} 39. d7 {[%clk 00:06:02]}
{[%emt 00:05:05]} Ke7 {[%clk 00:01:13]} {[%emt 00:00:11]} 40. Rd4 {[%clk
00:06:13]} {[%emt 00:00:18]} Kd8 {[%clk 00:01:11]} {[%emt 00:00:33]} 41. Bd2
{[%clk 00:05:35]} {[%emt 00:01:08]} g5 {[%clk 00:27:42]} {[%emt 00:03:58]} 42.
Bxf4 {[%clk 00:35:23]} {[%emt 00:00:42]} gxf4 {[%clk 00:28:01]} {[%emt
00:00:11]} 43. Kf2 {[%clk 00:35:18]} {[%emt 00:00:35]} b5 {[%clk 00:26:38]}
{[%emt 00:01:54]} 44. Rd5 {[%clk 00:34:54]} {[%emt 00:00:54]} a4 {[%clk
00:26:33]} {[%emt 00:00:34]} 45. bxa4 {[%clk 00:34:41]} {[%emt 00:00:43]} bxa4
{[%clk 00:26:53]} {[%emt 00:00:11]} 46. Nc5 {[%clk 00:34:52]} {[%emt 00:00:18]}
Rb6 {[%clk 00:21:55]} {[%emt 00:05:27]} 47. Nxa4 {[%clk 00:34:59]} {[%emt
00:00:25]} Rb8 {[%clk 00:17:36]} {[%emt 00:04:48]} 48. Nc5 {[%clk 00:33:24]}
{[%emt 00:02:05]} Rb6 {[%clk 00:15:44]} {[%emt 00:02:22]} 49. Re5 {[%clk
00:32:38]} {[%emt 00:01:16]} Rd6 {[%clk 00:15:22]} {[%emt 00:01:11]} 1-0

[Event "Swedish Chess Championship 2019: Veteran-SM 65+"]
[Site "Stiga Sports Arena, Arenatorget 1, Eskilstuna, Sweden"]
[Date "2019.07.11"]
[Round "6.2"]
[White "Gajic, Zoran"]
[Black "Adolfsson, Kjell"]
[Result "1-0"]
[TimeControl "90 minutes for 40 moves + 30 minutes for the rest of the game + 30 seconds per move from move one"]
[WhiteFideId "1718304"]
[BlackFideId "1714961"]
[WhiteElo "1936"]
[BlackElo "1895"]

1. d4 {[%clk 01:30:57]} {[%emt 00:00:08]} d5 {[%clk 01:30:33]} {[%emt
00:01:25]} 2. Nf3 {[%clk 01:31:12]} {[%emt 00:00:49]} e6 {[%clk 01:30:55]}
{[%emt 00:00:24]} 3. e3 {[%clk 01:31:08]} {[%emt 00:01:58]} Nf6 {[%clk
01:30:57]} {[%emt 00:01:44]} 4. Bd3 {[%clk 01:31:28]} {[%emt 00:00:43]} c5
{[%clk 01:31:17]} {[%emt 00:00:38]} 5. b3 {[%clk 01:31:52]} {[%emt 00:00:23]}
Nc6 {[%clk 01:31:17]} {[%emt 00:01:21]} 6. Bb2 {[%clk 01:32:07]} Qc7 {[%clk
01:30:53]} 7. a3 {[%clk 01:32:14]} a6 {[%clk 01:27:37]} 8. Nbd2 {[%clk
01:31:26]} {[%emt 00:00:03]} b5 {[%clk 01:24:09]} {[%emt 00:03:47]} 9. c4
{[%clk 01:20:38]} {[%emt 00:11:19]} cxd4 {[%clk 01:18:27]} {[%emt 00:06:11]} 10.
cxb5 {[%clk 01:20:01]} {[%emt 00:01:08]} dxe3 {[%clk 01:16:39]} {[%emt
00:02:18]} 11. fxe3 {[%clk 01:19:22]} {[%emt 00:01:10]} Ne7 {[%clk 01:05:29]}
{[%emt 00:11:40]} 12. Rc1 {[%clk 01:17:56]} {[%emt 00:01:55]} Qd8 {[%clk
01:01:26]} {[%emt 00:04:33]} 13. Ne5 {[%clk 01:17:26]} {[%emt 00:01:01]} Qd6
{[%clk 00:51:27]} {[%emt 00:10:29]} 14. O-O {[%clk 01:13:38]} {[%emt 00:04:17]}
Bb7 {[%clk 00:47:33]} {[%emt 00:04:24]} 15. Qe2 {[%clk 01:10:45]} {[%emt
00:03:22]} Ng6 {[%clk 00:44:38]} {[%emt 00:03:26]} 16. bxa6 {[%clk 00:54:32]}
{[%emt 00:16:44]} Rxa6 {[%clk 00:43:43]} {[%emt 00:01:24]} 17. Bb5+ {[%clk
00:54:12]} {[%emt 00:00:51]} Ke7 {[%clk 00:40:17]} {[%emt 00:03:56]} 18. Bd4
{[%clk 00:52:20]} {[%emt 00:02:22]} Qb8 {[%clk 00:30:17]} {[%emt 00:10:30]} 19.
Bxa6 {[%clk 00:50:28]} {[%emt 00:02:22]} Bxa6 {[%clk 00:29:26]} {[%emt
00:01:21]} 20. Nc6+ {[%clk 00:50:50]} {[%emt 00:00:09]} 1-0

[Event "Swedish Chess Championship 2019: Veteran-SM 65+"]
[Site "Stiga Sports Arena, Arenatorget 1, Eskilstuna, Sweden"]
[Date "2019.07.11"]
[Round "6.3"]
[White "Moborn, Anders"]
[Black "Wedin, Svante"]
[Result "1-0"]
[TimeControl "90 minutes for 40 moves + 30 minutes for the rest of the game + 30 seconds per move from move one"]
[WhiteFideId "1706349"]
[BlackFideId "1711989"]
[WhiteElo "2034"]
[BlackElo "2003"]

1. d4 {[%clk 01:30:58]} {[%emt 00:00:03]} d5 {[%clk 01:30:54]} {[%emt
00:00:20]} 2. c4 {[%clk 01:31:17]} {[%emt 00:00:35]} c6 {[%clk 01:31:23]}
{[%emt 00:00:06]} 3. Nc3 {[%clk 01:31:34]} {[%emt 00:00:36]} Nf6 {[%clk
01:31:46]} {[%emt 00:00:23]} 4. Nf3 {[%clk 01:31:51]} {[%emt 00:00:43]} dxc4
{[%clk 01:32:09]} {[%emt 00:00:25]} 5. a4 {[%clk 01:31:44]} {[%emt 00:02:10]}
Bf5 {[%clk 01:32:31]} {[%emt 00:00:27]} 6. e3 {[%clk 01:31:29]} {[%emt
00:03:31]} e6 {[%clk 01:32:55]} 7. Bxc4 {[%clk 01:31:28]} Bd6 {[%clk 01:30:29]}
8. O-O {[%clk 01:30:28]} O-O {[%clk 01:30:48]} 9. Re1 {[%clk 01:29:04]} {[%emt
00:00:13]} Bg4 {[%clk 01:29:13]} {[%emt 00:01:59]} 10. h3 {[%clk 01:26:35]} Bh5
{[%clk 01:29:22]} {[%emt 00:03:20]} 11. e4 {[%emt 00:02:35]} Be7 {[%clk
01:29:42]} 12. g4 {[%clk 01:17:32]} {[%emt 00:07:39]} Bg6 {[%clk 01:25:45]}
{[%emt 00:04:26]} 13. Ne5 {[%clk 01:17:22]} {[%emt 00:00:40]} Nbd7 {[%clk
01:24:15]} {[%emt 00:01:59]} 14. Nxg6 {[%clk 01:07:46]} {[%emt 00:10:07]} hxg6
{[%clk 01:24:33]} {[%emt 00:00:12]} 15. Be3 {[%clk 01:06:55]} {[%emt 00:01:21]}
e5 {[%clk 01:22:03]} {[%emt 00:03:00]} 16. dxe5 {[%clk 00:49:08]} {[%emt
00:18:17]} Nxe5 {[%clk 01:20:10]} {[%emt 00:02:22]} 17. Be2 {[%clk 00:49:15]}
{[%emt 00:00:23]} Qa5 {[%clk 01:07:19]} {[%emt 00:13:21]} 18. Qb3 {[%clk
00:30:50]} {[%emt 00:18:54]} Bb4 {[%clk 01:01:09]} {[%emt 00:06:41]} 19. Bf4
{[%clk 00:17:51]} {[%emt 00:13:29]} Rae8 {[%clk 00:43:42]} {[%emt 00:17:57]} 20.
f3 {[%clk 00:16:08]} {[%emt 00:02:14]} Re7 {[%clk 00:38:16]} {[%emt 00:05:55]}
21. Kg2 {[%clk 00:13:41]} {[%emt 00:02:57]} Nfd7 {[%clk 00:35:38]} {[%emt
00:03:07]} 22. Red1 {[%clk 00:09:20]} {[%emt 00:04:52]} Nc5 {[%clk 00:34:57]}
{[%emt 00:01:11]} 23. Qc2 {[%clk 00:09:30]} {[%emt 00:00:20]} Ne6 {[%clk
00:34:54]} {[%emt 00:00:33]} 24. Bg3 {[%clk 00:08:50]} {[%emt 00:01:10]} g5
{[%clk 00:34:10]} {[%emt 00:01:14]} 25. Nd5 {[%clk 00:07:20]} {[%emt 00:02:00]}
Ng6 {[%clk 00:28:02]} {[%emt 00:06:37]} 26. Nxe7+ {[%clk 00:06:15]} {[%emt
00:01:36]} Bxe7 {[%clk 00:28:29]} {[%emt 00:00:04]} 27. Rd7 {[%clk 00:05:59]}
{[%emt 00:00:46]} Qb6 {[%clk 00:25:58]} {[%emt 00:03:00]} 28. Bc4 {[%clk
00:02:46]} {[%emt 00:03:43]} Nd4 {[%clk 00:18:31]} {[%emt 00:07:57]} 29. Qd2
{[%clk 00:01:08]} {[%emt 00:02:08]} Bc5 {[%clk 00:17:27]} {[%emt 00:01:33]} 30.
b4 {[%clk 00:01:37]} {[%emt 00:00:01]} Bxb4 {[%clk 00:14:03]} {[%emt 00:03:54]}
31. Qxd4 {[%clk 00:01:54]} {[%emt 00:00:13]} Bc5 {[%clk 00:14:04]} {[%emt
00:00:29]} 32. Qd2 {[%clk 00:01:55]} {[%emt 00:00:28]} Be3 {[%clk 00:14:33]}
{[%emt 00:00:02]} 33. Qc2 {[%clk 00:01:55]} {[%emt 00:00:30]} c5 {[%clk
00:12:08]} {[%emt 00:02:55]} 34. Rb1 {[%clk 00:02:11]} Qf6 {[%clk 00:11:37]}
{[%emt 00:01:15]} 35. Rbxb7 {[%clk 00:02:09]} Nh4+ {[%clk 00:09:09]} {[%emt
00:03:29]} 1-0

[Event "Swedish Chess Championship 2019: Veteran-SM 65+"]
[Site "Stiga Sports Arena, Arenatorget 1, Eskilstuna, Sweden"]
[Date "2019.07.11"]
[Round "6.4"]
[White "Gromark, Jonas"]
[Black "Lagerborg, Krister"]
[Result "1-0"]
[TimeControl "90 minutes for 40 moves + 30 minutes for the rest of the game + 30 seconds per move from move one"]
[WhiteFideId "137122733"]
[BlackFideId "1712411"]
[WhiteElo "1833"]
[BlackElo "2129"]

1. b3 {[%clk 01:30:35]} {[%emt 00:01:16]} e5 {[%clk 01:30:13]} {[%emt
00:02:41]} 2. Bb2 {[%clk 01:30:57]} {[%emt 00:00:28]} d6 {[%clk 01:30:35]}
{[%emt 00:00:24]} 3. c4 {[%clk 01:29:24]} {[%emt 00:03:49]} Nd7 {[%clk
01:29:33]} 4. e3 {[%clk 01:28:28]} g6 {[%clk 01:28:37]} 5. d3 {[%clk 01:25:39]}
{[%emt 00:01:56]} Bg7 {[%clk 01:28:37]} {[%emt 00:00:30]} 6. Nf3 {[%clk
01:25:01]} {[%emt 00:01:07]} f5 {[%clk 01:28:20]} {[%emt 00:00:47]} 7. Be2
{[%clk 01:23:56]} {[%emt 00:01:35]} Ngf6 {[%clk 01:27:43]} {[%emt 00:01:08]} 8.
O-O {[%clk 01:22:50]} {[%emt 00:01:35]} O-O {[%clk 01:27:58]} {[%emt 00:00:16]}
9. Qc2 {[%clk 01:21:14]} {[%emt 00:02:06]} h6 {[%clk 01:24:30]} {[%emt
00:03:58]} 10. Nc3 {[%clk 01:19:10]} {[%emt 00:02:34]} g5 {[%clk 01:24:32]}
{[%emt 00:00:28]} 11. Nd2 {[%clk 01:12:44]} {[%emt 00:06:56]} g4 {[%clk
01:19:44]} {[%emt 00:05:19]} 12. f4 {[%clk 01:07:00]} {[%emt 00:06:13]} exf4
{[%clk 01:17:13]} {[%emt 00:03:01]} 13. exf4 {[%clk 01:06:51]} {[%emt
00:00:39]} c5 {[%clk 01:08:22]} {[%emt 00:09:21]} 14. d4 {[%clk 00:53:52]}
{[%emt 00:13:29]} cxd4 {[%clk 01:07:17]} {[%emt 00:01:35]} 15. Nb5 {[%clk
00:53:34]} {[%emt 00:00:48]} Nc5 {[%clk 01:07:02]} {[%emt 00:00:45]} 16. Nxd4
{[%clk 00:46:31]} {[%emt 00:07:34]} Re8 {[%clk 01:05:57]} {[%emt 00:01:34]} 17.
Rae1 {[%clk 00:45:41]} {[%emt 00:01:20]} Nfe4 {[%clk 01:02:57]} {[%emt
00:03:31]} 18. Nxe4 {[%clk 00:43:05]} {[%emt 00:03:05]} fxe4 {[%clk 00:56:41]}
{[%emt 00:06:46]} 19. b4 {[%clk 00:40:09]} {[%emt 00:03:26]} Na6 {[%clk
00:56:05]} {[%emt 00:01:06]} 20. a3 {[%clk 00:38:24]} {[%emt 00:02:15]} Qb6
{[%clk 00:52:55]} {[%emt 00:03:39]} 21. Rd1 {[%clk 00:36:12]} {[%emt 00:02:42]}
h5 {[%clk 00:52:11]} {[%emt 00:01:16]} 22. Kh1 {[%clk 00:35:54]} {[%emt
00:00:48]} Bd7 {[%clk 00:50:00]} {[%emt 00:02:40]} 23. Qb3 {[%clk 00:33:14]}
{[%emt 00:03:09]} Kh8 {[%clk 00:48:57]} {[%emt 00:01:34]} 24. Nb5 {[%clk
00:30:30]} {[%emt 00:03:14]} Bxb5 {[%clk 00:36:45]} {[%emt 00:12:42]} 25. Bxg7+
{[%clk 00:25:42]} {[%emt 00:05:18]} Kxg7 {[%clk 00:37:08]} {[%emt 00:00:07]} 26.
Qc3+ {[%clk 00:25:32]} {[%emt 00:00:40]} Kf7 {[%clk 00:37:07]} {[%emt
00:00:31]} 27. cxb5 {[%clk 00:23:22]} {[%emt 00:02:40]} Nc7 {[%clk 00:37:21]}
{[%emt 00:00:16]} 28. Bc4+ {[%clk 00:22:29]} {[%emt 00:01:22]} d5 {[%clk
00:35:15]} {[%emt 00:02:37]} 29. Bxd5+ {[%clk 00:21:37]} {[%emt 00:01:23]} Kg6
{[%clk 00:25:59]} {[%emt 00:09:45]} 30. f5+ {[%clk 00:18:01]} {[%emt 00:04:06]}
Kh7 {[%clk 00:20:28]} {[%emt 00:06:01]} 31. Bxe4 {[%clk 00:14:52]} {[%emt
00:03:38]} Re7 {[%clk 00:12:03]} {[%emt 00:08:56]} 32. Bd3 {[%clk 00:10:29]}
{[%emt 00:04:53]} Nd5 {[%clk 00:09:22]} {[%emt 00:03:11]} 33. f6+ {[%clk
00:10:02]} {[%emt 00:00:56]} Kh6 {[%clk 00:08:22]} {[%emt 00:01:31]} 34. Qd2+
{[%clk 00:09:25]} {[%emt 00:01:07]} Re3 {[%clk 00:08:40]} {[%emt 00:00:12]} 35.
Bc4 {[%clk 00:06:45]} {[%emt 00:03:10]} Nxf6 {[%clk 00:06:34]} {[%emt
00:02:36]} 36. Rxf6+ {[%clk 00:07:02]} {[%emt 00:00:13]} Qxf6 {[%clk 00:07:00]}
{[%emt 00:00:05]} 37. Qxe3+ {[%clk 00:07:26]} {[%emt 00:00:06]} Kg7 {[%clk
00:07:05]} {[%emt 00:00:24]} 38. Rf1 {[%clk 00:07:00]} {[%emt 00:00:55]} Qg6
{[%clk 00:06:11]} {[%emt 00:01:26]} 39. Qe5+ {[%clk 00:06:04]} {[%emt
00:01:25]} Kh7 {[%clk 00:06:13]} {[%emt 00:00:28]} 40. Bd3 {[%clk 00:04:38]}
{[%emt 00:01:56]} Qxd3 {[%clk 00:05:47]} {[%emt 00:00:56]} 41. Rf7+ {[%clk
00:04:54]} {[%emt 00:00:13]} Kh6 {[%clk 00:05:56]} {[%emt 00:00:22]} 42. Qg7#
{[%clk 00:05:13]} {[%emt 00:00:10]} 1-0

[Event "Swedish Chess Championship 2019: Veteran-SM 65+"]
[Site "Stiga Sports Arena, Arenatorget 1, Eskilstuna, Sweden"]
[Date "2019.07.12"]
[Round "7.1"]
[White "Adolfsson, Kjell"]
[Black "Andersson, Kjell-Ake"]
[Result "1/2-1/2"]
[TimeControl "90 minutes for 40 moves + 30 minutes for the rest of the game + 30 seconds per move from move one"]
[WhiteFideId "1714961"]
[BlackFideId "1713825"]
[WhiteElo "1895"]
[BlackElo "1859"]

1. Nc3 {[%clk 01:30:56]} {[%emt 00:00:06]} d5 {[%clk 01:30:37]} {[%emt
00:01:02]} 2. e4 {[%clk 01:31:20]} {[%emt 00:00:53]} e6 {[%clk 01:30:45]} 3. f4
{[%clk 01:31:47]} dxe4 {[%clk 01:28:43]} {[%emt 00:01:27]} 4. Nxe4 {[%clk
01:32:14]} {[%emt 00:00:04]} Nf6 {[%clk 01:28:47]} {[%emt 00:00:26]} 5. Nf2
{[%clk 01:29:32]} {[%emt 00:03:11]} c5 {[%clk 01:26:15]} {[%emt 00:03:01]} 6.
Nf3 {[%clk 01:29:44]} {[%emt 00:00:19]} Nc6 {[%clk 01:26:33]} {[%emt 00:00:12]}
7. b3 {[%clk 01:28:59]} {[%emt 00:01:15]} Be7 {[%clk 01:25:37]} {[%emt
00:01:26]} 8. Bb2 {[%clk 01:29:17]} {[%emt 00:00:13]} O-O {[%clk 01:25:28]}
{[%emt 00:00:38]} 9. g3 {[%clk 01:21:58]} {[%emt 00:07:49]} b6 {[%clk
01:22:33]} {[%emt 00:03:25]} 10. Bg2 {[%clk 01:21:39]} {[%emt 00:00:49]} Bb7
{[%clk 01:21:50]} {[%emt 00:01:12]} 11. O-O {[%clk 01:21:27]} {[%emt 00:00:43]}
Qc7 {[%clk 01:19:05]} {[%emt 00:03:14]} 12. Qe2 {[%clk 01:17:43]} {[%emt
00:04:16]} Rad8 {[%clk 01:16:10]} {[%emt 00:03:25]} 13. d3 {[%clk 01:02:14]}
{[%emt 00:15:59]} Nd4 {[%clk 01:10:26]} {[%emt 00:06:14]} 14. Nxd4 {[%clk
00:58:13]} {[%emt 00:04:31]} Bxg2 {[%clk 01:07:25]} {[%emt 00:03:31]} 15. Kxg2
{[%clk 00:58:20]} {[%emt 00:00:23]} cxd4 {[%clk 01:07:45]} {[%emt 00:00:10]} 16.
Rac1 {[%clk 00:57:44]} {[%emt 00:01:06]} Nd5 {[%clk 01:07:33]} {[%emt
00:00:42]} 17. Kg1 {[%clk 00:43:26]} {[%emt 00:14:48]} Ne3 {[%clk 00:58:31]}
{[%emt 00:09:33]} 18. Rfe1 {[%clk 00:42:03]} {[%emt 00:01:52]} Bb4 {[%clk
00:58:32]} {[%emt 00:00:30]} 19. c3 {[%clk 00:40:05]} {[%emt 00:02:28]} Qb7
{[%clk 00:58:06]} {[%emt 00:00:56]} 20. Ne4 {[%clk 00:36:57]} {[%emt 00:03:37]}
dxc3 {[%clk 00:56:52]} {[%emt 00:01:44]} 21. Bxc3 {[%clk 00:30:26]} {[%emt
00:07:01]} Bxc3 {[%clk 00:53:22]} {[%emt 00:04:00]} 22. Rxc3 {[%clk 00:30:07]}
{[%emt 00:00:49]} Nd5 {[%clk 00:52:49]} {[%emt 00:01:03]} 23. Rc4 {[%clk
00:29:03]} {[%emt 00:01:36]} Rd7 {[%clk 00:51:47]} {[%emt 00:01:30]} 24. Rec1
{[%clk 00:24:28]} {[%emt 00:05:06]} Rfd8 {[%clk 00:49:36]} {[%emt 00:02:40]} 25.
a4 {[%clk 00:18:05]} {[%emt 00:06:53]} Ne7 {[%clk 00:48:40]} {[%emt 00:01:26]}
26. Nf2 {[%clk 00:16:52]} {[%emt 00:01:44]} Nf5 {[%clk 00:48:35]} {[%emt
00:00:35]} 27. Qe4 {[%clk 00:10:44]} {[%emt 00:06:38]} h6 {[%clk 00:48:02]}
{[%emt 00:01:02]} 28. Qxb7 {[%clk 00:07:12]} {[%emt 00:04:03]} Rxb7 {[%clk
00:44:53]} {[%emt 00:03:39]} 29. Rc7 {[%clk 00:07:39]} {[%emt 00:00:04]} Rd7
{[%clk 00:45:04]} {[%emt 00:00:18]} 30. Rxb7 {[%clk 00:05:12]} {[%emt
00:02:58]} Rxb7 {[%clk 00:45:13]} {[%emt 00:00:20]} 31. Rc8+ {[%clk 00:05:36]}
{[%emt 00:00:06]} 1/2-1/2